fUSD/lending_fUSD_20251225
["ID","MTS","AMOUNT","RATE_DAILY","PERIOD"]
[399742998,1766652640993,-1151.5825063,0.0001196,2]
[399742999,1766652641003,-8491.85784414,0.0001196,2]
[399743000,1766652641012,-150.0,0.00012396,2]
[399743001,1766652641022,-1200.0,0.00012457,2]
[399743002,1766652641032,-420.0,0.00012457,2]
[399743003,1766652641042,-420.0,0.00012457,2]
[399743004,1766652641052,-300.0,0.00012474,2]
[399743005,1766652641063,-250.0,0.00012475,2]
[399743006,1766652641073,-1151.5825063,0.00012577,2]
[399743007,1766652641083,-8491.85784414,0.00012577,2]
[399743008,1766652641093,-456.42190137,0.00012767,2]
[399743009,1766652641107,-1151.5825063,0.00013195,2]
[399743010,1766652641116,-8491.85784414,0.00013195,2]
[399743011,1766652641126,-165.23,0.00013566,2]
[399743012,1766652641137,-587.0,0.00013684,2]
[399743013,1766652641147,-500.0,0.00013698,2]
[399743014,1766652641157,-500.0,0.00013698,2]
[399743015,1766652641167,-622.31367143,0.00013698,2]
[399743016,1766652641177,-500.0,0.00013698,2]
[399743017,1766652641187,-500.0,0.00013698,2]
[399743018,1766652641197,-500.0,0.00013698,2]
[399743019,1766652641207,-500.0,0.00013698,2]
[399743020,1766652641217,-500.0,0.00013698,2]
[399743021,1766652641227,-155.19830899,0.00013698,2]
[399743022,1766652641237,-500.0,0.00013698,2]
[399743023,1766652641247,-500.0,0.00013698,2]
[399743024,1766652641256,-221.4379723,0.00013698,2]
[399743025,1766652641267,-613.33,0.00013699,2]
[399743026,1766652641277,-500.0,0.00013699,2]
[399743027,1766652641287,-500.0,0.00013699,2]
[399743028,1766652641297,-1151.5825063,0.00013812,2]
[399743029,1766652641311,-8491.85784414,0.00013812,2]
[399743030,1766652641321,-3240.0,0.00013926,2]
[399743031,1766652641331,-200.0,0.00014185,2]
[399743032,1766652641341,-556.7,0.00014384,2]
[399743033,1766652641351,-1151.5825063,0.0001443,2]
[399743034,1766652641362,-8491.85784414,0.0001443,2]
[399743035,1766652641372,-200.0,0.00014441,2]
[399743036,1766652641382,-500.0,0.00014493,2]
[399743037,1766652641392,-173.76917208,0.00014607,2]
[399743038,1766652641401,-11273.35,0.00014656,2]
[399743039,1766652641411,-205.75,0.00014715,2]
[399743041,1766652641423,-250.42,0.00014987,2]
[399743042,1766652641433,-150.0,0.00014992,2]
[399743043,1766652641443,-823.0,0.00015032,2]
[399743044,1766652641455,-166.66,0.00015038,2]
[399743045,1766652641464,-1151.5825063,0.00015047,2]
[399743046,1766652641474,-8491.85784414,0.00015047,2]
[399743047,1766652641484,-595.65883487,0.0001528,2]
[399743048,1766652641494,-150.0,0.00015288,2]
[399743049,1766652641504,-150.0,0.00015288,2]
[399743050,1766652641514,-172.12623375,0.00015288,2]
[399743051,1766652641523,-207.98052348,0.00015288,2]
[399743052,1766652641533,-150.0,0.00015288,2]
[399743053,1766652641543,-150.0,0.00015288,2]
[399743054,1766652641553,-299.35190735,0.00015288,2]
[399743055,1766652641563,-150.0,0.00015288,2]
[399743056,1766652641574,-150.0,0.00015288,2]
[399743057,1766652641585,-150.0,0.00015288,2]
[399743058,1766652641595,-150.03943629,0.00015288,2]
[399743059,1766652641606,-150.0,0.00015288,2]
[399743060,1766652641615,-150.0,0.00015288,2]
[399743061,1766652641625,-150.0,0.00015288,2]
[399743062,1766652641636,-191.79160584,0.00015288,2]
[399743063,1766652641646,-150.0,0.00015288,2]
[399743064,1766652641656,-150.0,0.00015288,2]
[399743065,1766652641666,-172.12623375,0.00015305,2]
[399743066,1766652641676,-207.98052348,0.00015305,2]
[399743067,1766652641686,-299.35190735,0.00015305,2]
[399743068,1766652641710,-150.03943629,0.00015305,2]
[399743069,1766652641720,-150.0,0.00015306,2]
[399743070,1766652641731,-150.0,0.00015312,2]
[399743071,1766652641741,-150.0,0.00015312,2]
[399743072,1766652641750,-172.12623375,0.00015322,2]
[399743073,1766652641760,-207.98052348,0.00015322,2]
[399743074,1766652641770,-299.35190735,0.00015322,2]
[399743075,1766652641780,-150.03943629,0.00015322,2]
[399743076,1766652641790,-150.0,0.00015324,2]
[399743077,1766652641802,-150.0,0.0001533,2]
[399743078,1766652641813,-250.0,0.00015335,2]
[399743079,1766652641822,-150.0,0.00015336,2]
[399743080,1766652641832,-150.0,0.00015336,2]
[399743081,1766652641843,-172.12623375,0.00015339,2]
[399743082,1766652641853,-207.98052348,0.00015339,2]
[399743083,1766652641863,-299.35190735,0.00015339,2]
[399743084,1766652641874,-150.03943629,0.00015339,2]
[399743085,1766652641884,-150.0,0.00015342,2]
[399743086,1766652641894,-150.0,0.00015353,2]
[399743087,1766652641904,-172.12623375,0.00015356,2]
[399743088,1766652641915,-207.98052348,0.00015356,2]
[399743089,1766652641925,-299.35190735,0.00015356,2]
[399743090,1766652641935,-150.03943629,0.00015356,2]
[399743091,1766652641945,-150.0,0.00015358,2]
[399743092,1766652641955,-150.0,0.00015359,2]
[399743093,1766652641965,-150.0,0.0001536,2]
[399743094,1766652641975,-150.0,0.00015361,2]
[399743095,1766652641985,-150.0,0.00015373,2]
[399743096,1766652641995,-172.12623375,0.00015373,2]
[399743097,1766652642004,-207.98052348,0.00015373,2]
[399743098,1766652642015,-299.35190735,0.00015373,2]
[399743099,1766652642025,-150.03943629,0.00015373,2]
[399743100,1766652642035,-150.0,0.00015377,2]
[399743101,1766652642049,-150.0,0.00015379,2]
[399743102,1766652642059,-150.0,0.00015383,2]
[399743103,1766652642069,-150.0,0.00015385,2]
[399743104,1766652642080,-172.12623375,0.00015391,2]
[399743105,1766652642090,-207.98052348,0.00015391,2]
[399743106,1766652642100,-299.35190735,0.00015391,2]
[399743107,1766652642110,-150.03943629,0.00015391,2]
[399743108,1766652642120,-150.0,0.00015397,2]
[399743109,1766652642130,-150.0,0.00015407,2]
[399743110,1766652642141,-172.12623375,0.00015408,2]
[399743111,1766652642151,-207.98052348,0.00015408,2]
[399743112,1766652642162,-299.35190735,0.00015408,2]
[399743113,1766652642172,-150.03943629,0.00015408,2]
[399743114,1766652642182,-150.0,0.00015409,2]
[399743115,1766652642192,-150.0,0.00015415,2]
[399743116,1766652642202,-150.0,0.00015416,2]
[399743117,1766652642212,-150.0,0.00015418,2]
[399743118,1766652642223,-172.12623375,0.00015425,2]
[399743119,1766652642234,-207.98052348,0.00015425,2]
[399743120,1766652642244,-299.35190735,0.00015425,2]
[399743121,1766652642256,-150.03943629,0.00015425,2]
[399743122,1766652642266,-150.0,0.00015429,2]
[399743123,1766652642279,-150.0,0.00015431,2]
[399743124,1766652642290,-150.0,0.00015433,2]
[399743125,1766652642300,-150.0,0.00015434,2]
[399743126,1766652642310,-172.12623375,0.00015442,2]
[399743127,1766652642320,-207.98052348,0.00015442,2]
[399743128,1766652642329,-299.35190735,0.00015442,2]
[399743129,1766652642339,-150.03943629,0.00015442,2]
[399743130,1766652642349,-150.0,0.00015452,2]
[399743133,1766652642360,-150.0,0.00015455,2]
[399743135,1766652642369,-150.0,0.00015458,2]
[399743137,1766652642379,-150.0,0.00015458,2]
[399743138,1766652642389,-172.12623375,0.00015459,2]
[399743139,1766652642400,-207.98052348,0.00015459,2]
[399743140,1766652642410,-299.35190735,0.00015459,2]
[399743141,1766652642420,-150.03943629,0.00015459,2]
[399743142,1766652642430,-150.0,0.00015466,2]
[399743144,1766652642677,-150.0,0.0001547,2]
[399743145,1766652642693,-172.12623375,0.00015476,2]
[399743146,1766652642703,-207.98052348,0.00015476,2]
[399743147,1766652642713,-299.35190735,0.00015476,2]
[399743148,1766652642723,-150.0,0.00015476,2]
[399743149,1766652642733,-150.03943629,0.00015476,2]
[399743150,1766652642744,-150.0,0.00015479,2]
[399743151,1766652642753,-150.0,0.00015482,2]
[399743152,1766652642763,-150.0,0.00015484,2]
[399743153,1766652642774,-150.0,0.00015489,2]
[399743154,1766652642784,-172.12623375,0.00015494,2]
[399743155,1766652642793,-207.98052348,0.00015494,2]
[399743156,1766652642806,-299.35190735,0.00015494,2]
[399743157,1766652642816,-150.03943629,0.00015494,2]
[399743158,1766652642825,-150.0,0.000155,2]
[399743159,1766652642835,-150.0,0.000155,2]
[399743160,1766652642845,-150.0,0.00015503,2]
[399743161,1766652642855,-150.0,0.00015506,2]
[399743162,1766652642865,-150.0,0.00015507,2]
[399743163,1766652642875,-172.12623375,0.00015511,2]
[399743164,1766652642885,-207.98052348,0.00015511,2]
[399743165,1766652642895,-299.35190735,0.00015511,2]
[399743166,1766652642904,-150.03943629,0.00015511,2]
[399743167,1766652642915,-150.0,0.00015525,2]
[399743168,1766652642925,-150.0,0.00015527,2]
[399743169,1766652642935,-172.12623375,0.00015528,2]
[399743170,1766652642944,-207.98052348,0.00015528,2]
[399743171,1766652642954,-299.35190735,0.00015528,2]
[399743172,1766652642964,-150.03943629,0.00015528,2]
[399743173,1766652642974,-150.0,0.0001553,2]
[399743174,1766652642986,-166.66,0.00015535,2]
[399743175,1766652642996,-150.0,0.00015542,2]
[399743176,1766652643006,-150.0,0.00015543,2]
[399743177,1766652643016,-172.12623375,0.00015545,2]
[399743178,1766652643026,-207.98052348,0.00015545,2]
[399743179,1766652643036,-299.35190735,0.00015545,2]
[399743180,1766652643046,-150.03943629,0.00015545,2]
[399743181,1766652643056,-150.0,0.00015549,2]
[399743182,1766652643067,-150.0,0.00015551,2]
[399743183,1766652643077,-150.0,0.00015555,2]
[399743184,1766652643087,-150.0,0.00015556,2]
[399743185,1766652643099,-150.0,0.00015562,2]
[399743186,1766652643110,-172.12623375,0.00015562,2]
[399743187,1766652643120,-207.98052348,0.00015562,2]
[399743188,1766652643130,-299.35190735,0.00015562,2]
[399743189,1766652643140,-150.03943629,0.00015562,2]
[399743190,1766652643150,-150.0,0.00015571,2]
[399743191,1766652643160,-150.0,0.00015571,2]
[399743192,1766652643171,-150.0,0.00015575,2]
[399743193,1766652643181,-150.0,0.00015579,2]
[399743194,1766652643192,-172.12623375,0.00015579,2]
[399743195,1766652643202,-207.98052348,0.00015579,2]
[399743196,1766652643212,-299.35190735,0.00015579,2]
[399743197,1766652643222,-150.03943629,0.00015579,2]
[399743198,1766652643232,-150.0,0.0001558,2]
[399743199,1766652643242,-150.0,0.00015585,2]
[399743200,1766652643252,-172.12623375,0.00015597,2]
[399743201,1766652643262,-207.98052348,0.00015597,2]
[399743202,1766652643272,-299.35190735,0.00015597,2]
[399743203,1766652643282,-150.03943629,0.00015597,2]
[399743204,1766652643292,-150.0,0.00015598,2]
[399743205,1766652643302,-150.0,0.00015599,2]
[399743206,1766652643312,-150.0,0.00015603,2]
[399743207,1766652643322,-172.12623375,0.00015614,2]
[399743208,1766652643332,-207.98052348,0.00015614,2]
[399743209,1766652643342,-299.35190735,0.00015614,2]
[399743210,1766652643352,-150.03943629,0.00015614,2]
[399743211,1766652643362,-150.0,0.00015614,2]
[399743212,1766652643372,-150.0,0.00015616,2]
[399743213,1766652643382,-150.0,0.00015623,2]
[399743214,1766652643392,-150.0,0.00015627,2]
[399743215,1766652643403,-150.0,0.00015627,2]
[399743216,1766652643412,-172.12623375,0.00015631,2]
[399743217,1766652643422,-207.98052348,0.00015631,2]
[399743218,1766652643432,-299.35190735,0.00015631,2]
[399743219,1766652643442,-150.03943629,0.00015631,2]
[399743220,1766652643451,-150.0,0.00015635,2]
[399743221,1766652643461,-150.0,0.00015642,2]
[399743222,1766652643471,-150.0,0.00015645,2]
[399743223,1766652643481,-150.0,0.00015647,2]
[399743224,1766652643491,-172.12623375,0.00015648,2]
[399743225,1766652643500,-207.98052348,0.00015648,2]
[399743226,1766652643510,-299.35190735,0.00015648,2]
[399743227,1766652643520,-150.03943629,0.00015648,2]
[399743228,1766652643530,-150.0,0.00015652,2]
[399743229,1766652643540,-150.0,0.00015653,2]
[399743230,1766652643550,-1151.5825063,0.00015665,2]
[399743231,1766652643560,-8491.85784414,0.00015665,2]
[399743232,1766652643570,-172.12623375,0.00015665,2]
[399743233,1766652643580,-207.98052348,0.00015665,2]
[399743234,1766652643590,-299.35190735,0.00015665,2]
[399743235,1766652643600,-150.0,0.00015665,2]
[399743236,1766652643611,-150.03943629,0.00015665,2]
[399743237,1766652643620,-150.0,0.0001567,2]
[399743238,1766652643630,-150.0,0.0001567,2]
[399743239,1766652643639,-150.0,0.00015671,2]
[399743240,1766652643649,-150.0,0.00015676,2]
[399743241,1766652643659,-150.0,0.0001568,2]
[399743242,1766652643670,-172.12623375,0.00015682,2]
[399743243,1766652643680,-207.98052348,0.00015682,2]
[399743244,1766652643690,-299.35190735,0.00015682,2]
[399743245,1766652643700,-150.03943629,0.00015682,2]
[399743246,1766652643709,-150.0,0.00015689,2]
[399743247,1766652643719,-150.0,0.00015694,2]
[399743248,1766652643729,-172.12623375,0.00015699,2]
[399743249,1766652643739,-207.98052348,0.00015699,2]
[399743250,1766652643749,-299.35190735,0.00015699,2]
[399743251,1766652643759,-150.03943629,0.00015699,2]
[399743252,1766652643769,-150.0,0.000157,2]
[399743253,1766652643779,-150.0,0.00015708,2]
[399743254,1766652643788,-150.0,0.00015712,2]
[399743255,1766652643798,-150.0,0.00015712,2]
[399743256,1766652643810,-150.0,0.00015712,2]
[399743257,1766652643821,-172.12623375,0.00015717,2]
[399743258,1766652643831,-207.98052348,0.00015717,2]
[399743259,1766652643841,-299.35190735,0.00015717,2]
[399743260,1766652643853,-150.03943629,0.00015717,2]
[399743261,1766652643863,-150.0,0.00015718,2]
[399743262,1766652643873,-150.0,0.00015724,2]
[399743263,1766652643885,-150.0,0.00015726,2]
[399743264,1766652643895,-172.12623375,0.00015734,2]
[399743265,1766652643905,-207.98052348,0.00015734,2]
[399743266,1766652643914,-299.35190735,0.00015734,2]
[399743267,1766652643922,-150.03943629,0.00015734,2]
[399743268,1766652643929,-150.0,0.00015735,2]
[399743269,1766652643938,-150.0,0.00015742,2]
[399743270,1766652643946,-150.0,0.00015744,2]
[399743271,1766652643954,-150.0,0.00015745,2]
[399743272,1766652643961,-150.0,0.00015749,2]
[399743273,1766652643969,-172.12623375,0.00015751,2]
[399743274,1766652643979,-207.98052348,0.00015751,2]
[399743275,1766652643986,-299.35190735,0.00015751,2]
[399743276,1766652643994,-150.03943629,0.00015751,2]
[399743277,1766652644001,-150.0,0.00015755,2]
[399743278,1766652644009,-150.0,0.00015763,2]
[399743279,1766652644016,-150.0,0.00015766,2]
[399743280,1766652644023,-172.12623375,0.00015768,2]
[399743281,1766652644030,-207.98052348,0.00015768,2]
[399743282,1766652644038,-299.35190735,0.00015768,2]
[399743283,1766652644046,-150.03943629,0.00015768,2]
[399743284,1766652644056,-150.0,0.00015773,2]
[399743285,1766652644066,-150.0,0.00015781,2]
[399743286,1766652644075,-150.0,0.00015783,2]
[399743287,1766652644086,-172.12623375,0.00015785,2]
[399743288,1766652644095,-207.98052348,0.00015785,2]
[399743289,1766652644105,-299.35190735,0.00015785,2]
[399743290,1766652644116,-150.03943629,0.00015785,2]
[399743291,1766652644126,-150.0,0.0001579,2]
[399743292,1766652644136,-150.0,0.00015797,2]
[399743293,1766652644146,-150.0,0.00015797,2]
[399743294,1766652644156,-150.0,0.00015799,2]
[399743295,1766652644167,-172.12623375,0.00015802,2]
[399743296,1766652644177,-207.98052348,0.00015802,2]
[399743297,1766652644187,-299.35190735,0.00015802,2]
[399743298,1766652644197,-150.03943629,0.00015802,2]
[399743299,1766652644207,-150.0,0.0001581,2]
[399743300,1766652644217,-150.0,0.00015814,2]
[399743301,1766652644228,-150.0,0.00015817,2]
[399743302,1766652644238,-172.12623375,0.0001582,2]
[399743303,1766652644248,-207.98052348,0.0001582,2]
[399743304,1766652644258,-299.35190735,0.0001582,2]
[399743305,1766652644268,-150.03943629,0.0001582,2]
[399743306,1766652644278,-150.0,0.00015822,2]
[399743307,1766652644289,-150.0,0.00015824,2]
[399743308,1766652644299,-150.0,0.00015836,2]
[399743309,1766652644308,-172.12623375,0.00015837,2]
[399743310,1766652644319,-207.98052348,0.00015837,2]
[399743311,1766652644329,-299.35190735,0.00015837,2]
[399743312,1766652644340,-150.03943629,0.00015837,2]
[399743313,1766652644350,-150.0,0.00015838,2]
[399743314,1766652644361,-150.0,0.0001584,2]
[399743315,1766652644371,-150.0,0.00015846,2]
[399743316,1766652644381,-172.12623375,0.00015854,2]
[399743317,1766652644391,-207.98052348,0.00015854,2]
[399743318,1766652644402,-150.0,0.00015854,2]
[399743319,1766652644412,-299.35190735,0.00015854,2]
[399743320,1766652644422,-150.0,0.00015854,2]
[399743321,1766652644432,-150.0,0.00015854,2]
[399743322,1766652644442,-150.03943629,0.00015854,2]
[399743323,1766652644452,-150.0,0.00015854,2]
[399743324,1766652644462,-150.0,0.00015862,2]
[399743325,1766652644472,-150.0,0.0001587,2]
[399743326,1766652644482,-172.12623375,0.00015871,2]
[399743327,1766652644492,-207.98052348,0.00015871,2]
[399743328,1766652644502,-299.35190735,0.00015871,2]
[399743329,1766652644512,-150.03943629,0.00015871,2]
[399743330,1766652644523,-150.0,0.00015872,2]
[399743331,1766652644533,-150.0,0.00015876,2]
[399743332,1766652644543,-150.0,0.00015882,2]
[399743333,1766652644552,-150.0,0.00015886,2]
[399743334,1766652644562,-172.12623375,0.00015888,2]
[399743335,1766652644572,-207.98052348,0.00015888,2]
[399743336,1766652644582,-299.35190735,0.00015888,2]
[399743337,1766652644592,-150.03943629,0.00015888,2]
[399743338,1766652644602,-150.0,0.0001589,2]
[399743339,1766652644612,-150.0,0.00015894,2]
[399743340,1766652644622,-172.12623375,0.00015905,2]
[399743341,1766652644631,-207.98052348,0.00015905,2]
[399743342,1766652644642,-299.35190735,0.00015905,2]
[399743343,1766652644651,-150.03943629,0.00015905,2]
[399743344,1766652644662,-150.0,0.00015909,2]
[399743345,1766652644672,-150.0,0.0001591,2]
[399743346,1766652644682,-150.0,0.00015913,2]
[399743347,1766652644692,-150.0,0.00015919,2]
[399743348,1766652644702,-172.12623375,0.00015923,2]
[399743349,1766652644711,-207.98052348,0.00015923,2]
[399743350,1766652644722,-299.35190735,0.00015923,2]
[399743351,1766652644732,-150.03943629,0.00015923,2]
[399743352,1766652644742,-150.0,0.00015925,2]
[399743353,1766652644751,-150.0,0.00015925,2]
[399743354,1766652644761,-150.0,0.00015927,2]
[399743355,1766652644771,-150.0,0.00015934,2]
[399743356,1766652644780,-172.12623375,0.0001594,2]
[399743357,1766652644790,-207.98052348,0.0001594,2]
[399743358,1766652644801,-299.35190735,0.0001594,2]
[399743359,1766652644813,-150.03943629,0.0001594,2]
[399743360,1766652644823,-150.0,0.00015941,2]
[399743361,1766652644834,-150.0,0.00015943,2]
[399743362,1766652644844,-150.0,0.00015945,2]
[399743363,1766652644854,-172.12623375,0.00015957,2]
[399743364,1766652644865,-207.98052348,0.00015957,2]
[399743365,1766652644876,-299.35190735,0.00015957,2]
[399743366,1766652644886,-150.03943629,0.00015957,2]
[399743367,1766652644896,-150.0,0.00015958,2]
[399743368,1766652644906,-150.0,0.00015963,2]
[399743369,1766652644916,-150.0,0.00015967,2]
[399743370,1766652644927,-150.0,0.00015967,2]
[399743371,1766652644938,-172.12623375,0.00015974,2]
[399743372,1766652644948,-207.98052348,0.00015974,2]
[399743373,1766652644958,-299.35190735,0.00015974,2]
[399743374,1766652644968,-150.03943629,0.00015974,2]
[399743375,1766652644978,-150.0,0.00015981,2]
[399743376,1766652644988,-150.0,0.00015982,2]
[399743377,1766652644998,-172.12623375,0.00015991,2]
[399743378,1766652645010,-207.98052348,0.00015991,2]
[399743379,1766652645020,-299.35190735,0.00015991,2]
[399743380,1766652645030,-150.03943629,0.00015991,2]
[399743381,1766652645040,-150.0,0.00015991,2]
[399743382,1766652645050,-150.0,0.00015995,2]
[399743383,1766652645059,-150.0,0.00016,2]
[399743384,1766652645070,-150.0,0.00016003,2]
[399743385,1766652645079,-150.0,0.00016005,2]
[399743386,1766652645090,-150.0,0.00016006,2]
[399743387,1766652645101,-172.12623375,0.00016008,2]
[399743388,1766652645112,-207.98052348,0.00016008,2]
[399743389,1766652645122,-299.35190735,0.00016008,2]
[399743390,1766652645132,-150.03943629,0.00016008,2]
[399743391,1766652645142,-150.0,0.0001601,2]
[399743392,1766652645152,-150.0,0.00016016,2]
[399743393,1766652645163,-150.0,0.00016018,2]
[399743394,1766652645464,-172.12623375,0.00016025,2]
[399743395,1766652645486,-207.98052348,0.00016025,2]
[399743396,1766652645497,-299.35190735,0.00016025,2]
[399743397,1766652645507,-150.03943629,0.00016025,2]
[399743398,1766652645517,-150.0,0.00016029,2]
[399743399,1766652645528,-166.66,0.00016031,2]
[399743400,1766652645538,-150.0,0.00016037,2]
[399743401,1766652645548,-150.0,0.0001604,2]
[399743402,1766652645559,-172.12623375,0.00016043,2]
[399743403,1766652645569,-207.98052348,0.00016043,2]
[399743404,1766652645580,-299.35190735,0.00016043,2]
[399743405,1766652645590,-150.0,0.00016043,2]
[399743406,1766652645601,-150.03943629,0.00016043,2]
[399743407,1766652645611,-150.0,0.00016052,2]
[399743408,1766652645622,-150.0,0.00016053,2]
[399743409,1766652645632,-150.0,0.00016055,2]
[399743410,1766652645643,-172.12623375,0.0001606,2]
[399743411,1766652645654,-207.98052348,0.0001606,2]
[399743412,1766652645665,-299.35190735,0.0001606,2]
[399743413,1766652645675,-150.03943629,0.0001606,2]
[399743414,1766652645685,-150.0,0.00016064,2]
[399743415,1766652645695,-150.0,0.00016066,2]
[399743416,1766652645705,-150.0,0.00016072,2]
[399743417,1766652645715,-150.0,0.00016073,2]
[399743418,1766652645726,-172.12623375,0.00016077,2]
[399743419,1766652645736,-207.98052348,0.00016077,2]
[399743420,1766652645746,-299.35190735,0.00016077,2]
[399743421,1766652645755,-150.03943629,0.00016077,2]
[399743422,1766652645765,-150.0,0.00016077,2]
[399743423,1766652645775,-150.0,0.00016088,2]
[399743424,1766652645784,-150.0,0.00016091,2]
[399743425,1766652645794,-150.0,0.00016092,2]
[399743426,1766652645805,-172.12623375,0.00016094,2]
[399743427,1766652645817,-207.98052348,0.00016094,2]
[399743428,1766652645827,-299.35190735,0.00016094,2]
[399743429,1766652645837,-150.03943629,0.00016094,2]
[399743430,1766652645847,-150.0,0.00016095,2]
[399743431,1766652645857,-150.0,0.00016101,2]
[399743432,1766652645867,-150.0,0.0001611,2]
[399743433,1766652645878,-172.12623375,0.00016111,2]
[399743434,1766652645889,-207.98052348,0.00016111,2]
[399743435,1766652645899,-299.35190735,0.00016111,2]
[399743436,1766652645908,-150.03943629,0.00016111,2]
[399743438,1766652645918,-150.0,0.00016113,2]
[399743440,1766652645928,-150.0,0.00016125,2]
[399743441,1766652645938,-150.0,0.00016128,2]
[399743442,1766652645948,-172.12623375,0.00016128,2]
[399743443,1766652645959,-207.98052348,0.00016128,2]
[399743444,1766652645968,-299.35190735,0.00016128,2]
[399743445,1766652645978,-150.03943629,0.00016128,2]
[399743446,1766652645987,-150.0,0.00016137,2]
[399743447,1766652645997,-150.0,0.00016137,2]
[399743448,1766652646007,-150.0,0.00016137,2]
[399743450,1766652646017,-150.0,0.00016137,2]
[399743451,1766652646027,-150.0,0.00016137,2]
[399743452,1766652646037,-150.0,0.00016137,2]
[399743453,1766652646046,-150.0,0.00016137,2]
[399743454,1766652646057,-172.12623375,0.00016146,2]
[399743455,1766652646067,-207.98052348,0.00016146,2]
[399743456,1766652646077,-299.35190735,0.00016146,2]
[399743457,1766652646087,-150.03943629,0.00016146,2]
[399743458,1766652646096,-150.0,0.00016146,2]
[399743459,1766652646106,-150.0,0.00016149,2]
[399743460,1766652646116,-150.0,0.00016161,2]
[399743461,1766652646127,-172.12623375,0.00016163,2]
[399743462,1766652646137,-207.98052348,0.00016163,2]
[399743463,1766652646147,-299.35190735,0.00016163,2]
[399743464,1766652646158,-150.03943629,0.00016163,2]
[399743465,1766652646169,-150.0,0.00016164,2]
[399743466,1766652646179,-150.0,0.00016173,2]
[399743467,1766652646189,-150.0,0.00016179,2]
[399743468,1766652646199,-172.12623375,0.0001618,2]
[399743469,1766652646208,-207.98052348,0.0001618,2]
[399743470,1766652646219,-299.35190735,0.0001618,2]
[399743471,1766652646229,-150.03943629,0.0001618,2]
[399743472,1766652646240,-150.0,0.00016182,2]
[399743473,1766652646250,-150.0,0.00016183,2]
[399743474,1766652646261,-150.0,0.00016186,2]
[399743475,1766652646271,-165.23,0.00016193,2]
[399743476,1766652646281,-150.0,0.00016197,2]
[399743477,1766652646292,-172.12623375,0.00016197,2]
[399743478,1766652646303,-207.98052348,0.00016197,2]
[399743479,1766652646314,-299.35190735,0.00016197,2]
[399743480,1766652646324,-150.03943629,0.00016197,2]
[399743481,1766652646334,-150.0,0.00016201,2]
[399743482,1766652646344,-150.0,0.00016202,2]
[399743483,1766652646354,-150.0,0.00016208,2]
[399743484,1766652646364,-150.0,0.0001621,2]
[399743485,1766652646375,-172.12623375,0.00016214,2]
[399743486,1766652646384,-207.98052348,0.00016214,2]
[399743487,1766652646395,-299.35190735,0.00016214,2]
[399743488,1766652646406,-150.03943629,0.00016214,2]
[399743489,1766652646416,-150.0,0.00016219,2]
[399743490,1766652646426,-150.0,0.00016221,2]
[399743491,1766652646437,-150.0,0.00016222,2]
[399743492,1766652646447,-172.12623375,0.00016231,2]
[399743493,1766652646457,-207.98052348,0.00016231,2]
[399743494,1766652646467,-299.35190735,0.00016231,2]
[399743495,1766652646477,-150.0,0.00016231,2]
[399743496,1766652646486,-150.03943629,0.00016231,2]
[399743497,1766652646496,-150.0,0.00016234,2]
[399743498,1766652646506,-150.0,0.00016237,2]
[399743499,1766652646515,-150.0,0.00016245,2]
[399743500,1766652646526,-172.12623375,0.00016249,2]
[399743501,1766652646535,-207.98052348,0.00016249,2]
[399743502,1766652646544,-299.35190735,0.00016249,2]
[399743503,1766652646555,-150.03943629,0.00016249,2]
[399743504,1766652646565,-150.0,0.00016256,2]
[399743505,1766652646575,-150.0,0.00016258,2]
[399743506,1766652646586,-150.0,0.00016264,2]